bitfinex/quotes_ETHUSD_20250616
["timestamp","ask_amount","ask_price","bid_price","bid_amount"]
[1750114613485,1.6739,2569.9,2569.8,3.89135341]
[1750114613687,0.04,2569.9,2569.8,3.89135341]
[1750114614107,0.04,2569.9,2569.8,3.93026662]
[1750114614306,0.04,2569.9,2569.8,3.89135341]
[1750114614609,0.04,2569.9,2569.8,3.93026086]
[1750114615442,0.04,2569.9,2569.8,3.89135341]
[1750114615912,0.04,2570.9,2570.8,3.88983973]
[1750114617090,0.04,2570.9,2569.0,8.66999262]
[1750114617398,0.04,2570.9,2568.9,8.224]
[1750114617399,3.831967,2570.6,2568.9,8.224]
[1750114617596,8.66999262,2570.7,2568.9,8.224]
[1750114617597,1.6369,2570.4,2568.9,8.224]
[1750114617924,7.7227148,2570.2,2568.9,8.224]
[1750114618220,3.891445,2569.8,2569.0,3.8925652]
[1750114618424,3.831967,2569.7,2568.9,8.224]
[1750114618596,3.89197954,2569.4,2568.9,8.224]
[1750114618803,3.89180774,2569.5,2568.9,8.224]
[1750114619121,3.89186957,2569.5,2568.9,12.11659173]
[1750114619339,1.5471,2569.7,2568.9,8.224]
[1750114619692,1.5471,2569.7,2569.3,3.89210299]
[1750114619894,1.5471,2569.7,2568.9,8.224]
[1750114620091,1.5471,2569.7,2569.1,3.89231497]
[1750114620398,5.43872471,2569.7,2569.1,3.89240821]
[1750114620832,8.66999262,2569.3,2567.9,1.5127]
[1750114621060,1.5885,2569.2,2568.3,3.89352]
[1750114621223,1.5885,2569.2,2568.1,0.07893345]
[1750114621224,2.13237247,2569.6,2568.1,0.04]
[1750114621417,8.66999262,2569.4,2568.2,3.8936654]
[1750114621731,3.89252921,2569.1,2568.4,3.89345727]
[1750114621913,8.66999262,2569.4,2568.1,0.04]
[1750114622089,13.89180774,2569.5,2568.6,3.89314689]
[1750114622421,1.5885,2569.6,2569.0,3.89244245]
[1750114622422,11.5885,2569.6,2569.0,3.89244245]
[1750114622624,1.54800472,2569.5,2568.1,0.04]
[1750114622824,11.5885,2569.6,2568.1,0.04]
[1750114622825,1.5885,2569.6,2568.2,0.038924]
[1750114623039,1.5885,2570.4,2570.1,3.89086987]
[1750114623340,1.5885,2570.4,2568.2,10.038924]
[1750114623341,1.5885,2570.8,2570.7,3.88999105]
[1750114623562,0.04,2570.9,2570.8,3.88983973]
[1750114623691,0.04,2570.9,2570.8,3.9287288]
[1750114623998,0.04,2570.9,2570.8,3.88983973]
[1750114624592,0.04,2570.9,2570.8,3.92873001]
[1750114625415,0.04,2570.9,2570.8,3.88983973]
[1750114626832,0.04,2570.9,2570.8,3.92873198]
[1750114626998,0.04,2570.9,2570.8,3.92873199]
[1750114627337,0.04,2570.9,2570.8,3.88983973]
[1750114628637,0.04,2570.9,2570.7,3.8899624]
[1750114628845,0.04,2570.9,2570.8,3.88983973]
[1750114629000,0.04,2570.9,2570.8,5.43403512]
[1750114629339,0.04,2571.9,2571.8,3.88832724]
[1750114629637,0.04,2571.9,2571.8,23.60962724]
[1750114630550,0.04,2572.9,2572.8,3.88681592]
[1750114632359,0.04,2572.9,2572.8,3.92567596]
[1750114632548,0.04,2572.9,2572.8,3.88681592]
[1750114633647,0.04,2572.9,2572.8,3.92567449]
[1750114634047,0.04,2572.9,2572.8,3.88681592]
[1750114634637,5.5361821,2572.9,2572.1,3.88782781]
[1750114634948,5.5361821,2572.9,2571.8,9.8806]
[1750114634949,0.55361821,2572.8,2571.8,18.175]
[1750114635263,3.88707452,2572.7,2572.1,3.88784304]
[1750114635472,1.6495,2572.9,2572.2,9.949]
[1750114635652,1.6495,2572.9,2572.5,3.88716186]
[1750114635962,1.6495,2572.9,2572.7,3.88690285]
[1750114636170,1.6495,2572.9,2572.6,3.88705319]
[1750114636370,1.6495,2572.9,2572.8,3.88681592]
[1750114636571,1.6495,2572.9,2572.5,3.88712399]
[1750114636869,1.6495,2572.9,2572.8,3.88681592]
[1750114637172,1.6495,2572.9,2571.8,8.222]
[1750114637372,1.6495,2572.9,2572.0,3.88802488]
[1750114637537,1.6495,2572.9,2571.9,9.933]
[1750114637876,1.6495,2572.9,2572.6,3.88711657]
[1750114638045,1.6495,2572.9,2572.2,13.81960704]
[1750114638046,3.88684418,2572.8,2572.2,13.81960704]
[1750114638250,10.94228997,2572.8,2571.8,8.222]
[1750114638441,10.94228997,2572.8,2570.3,8.66999262]
[1750114638442,5.50346388,2572.1,2571.5,3.88869286]
[1750114638849,5.50346388,2572.1,2571.4,13.8138786]
[1750114639051,1.6155,2572.1,2571.3,9.923]
[1750114639352,1.6155,2572.1,2571.4,3.88893209]
[1750114639715,1.6155,2572.6,2572.5,3.88726919]
[1750114639981,1.6155,2572.6,2571.6,3.88862964]
[1750114639982,0.04,2572.9,2572.3,9.917]
[1750114640184,0.04,2572.9,2572.7,3.88691153]
[1750114640355,0.04,2572.9,2572.7,3.88682295]
[1750114640561,0.04,2572.9,2572.7,3.88690487]
[1750114640765,0.04,2572.9,2572.8,3.88681592]
[1750114640966,0.04,2572.9,2572.6,3.88705091]
[1750114641299,0.04,2572.9,2572.7,3.88686893]
[1750114641584,0.04,2572.9,2572.3,9.917]
[1750114641800,0.04,2572.9,2572.6,3.88711337]
[1750114641998,0.04,2572.9,2572.5,3.88720211]
[1750114642507,0.04,2572.9,2572.4,3.88735195]
[1750114642793,0.04,2572.9,2572.3,13.80455667]
[1750114643000,0.04,2572.9,2572.6,3.88702581]
[1750114643299,0.04,2572.9,2571.7,3.88836786]
[1750114643300,0.04,2572.9,2571.2,3.88918727]
[1750114643503,0.04,2572.9,2572.4,3.88741061]
[1750114643664,0.04,2572.9,2572.5,3.88726919]
[1750114643867,0.04,2572.9,2572.5,3.88714076]
[1750114644185,0.04,2572.9,2572.6,3.88708013]
[1750114644361,0.04,2572.9,2572.2,9.9]
[1750114644562,0.04,2572.9,2572.6,3.88709617]
[1750114644784,0.04,2572.9,2572.2,9.9]
[1750114644951,0.04,2572.9,2572.5,3.88726325]
[1750114645378,0.04,2572.9,2572.7,3.88693261]
[1750114645582,0.04,2572.9,2572.6,3.8870339]
[1750114645854,0.04,2572.9,2572.7,3.88693934]
[1750114646280,0.04,2572.9,2572.6,3.88704846]
[1750114647216,0.04,2572.9,2572.7,3.88694286]
[1750114647997,0.04,2572.9,2572.6,3.8870187]
[1750114648184,0.04,2572.9,2572.7,3.88690674]
[1750114648383,0.04,2572.9,2572.2,9.9]
[1750114648592,0.04,2572.9,2572.7,3.88688056]
[1750114648800,0.04,2572.9,2572.2,13.78761562]
[1750114648801,0.04,2572.9,2572.6,3.88706213]
[1750114649319,0.04,2572.9,2572.7,3.88693982]
[1750114649530,0.04,2572.9,2572.8,3.88681592]
[1750114650284,0.04,2572.9,2572.7,3.88684765]
[1750114650484,0.04,2572.9,2572.7,3.88695376]
[1750114650907,1.6158,2572.8,2572.4,3.88734393]
[1750114651123,1.6158,2572.8,2572.5,3.88712886]
[1750114651889,1.6158,2572.8,2572.3,3.88747035]
[1750114652088,1.6158,2572.8,2572.5,3.88726643]
[1750114652642,2.47422915,2572.8,2571.7,8.216]
[1750114652800,1.6158,2572.0,2571.5,3.88866846]
[1750114653186,1.6158,2572.0,2571.1,9.829]
[1750114653187,1.6158,2572.0,2571.4,3.88883989]
[1750114653587,1.6158,2572.0,2571.6,3.88859818]
[1750114653840,1.6158,2572.4,2571.8,3.88832724]
[1750114654038,10.0,2572.3,2571.0,1.5372]
[1750114654335,10.0,2572.3,2570.5,12.10417341]
[1750114654336,0.86622681,2572.3,2571.1,9.82]
[1750114654518,1.6158,2572.4,2572.1,3.88777853]
[1750114654686,1.6158,2572.4,2571.8,9.818]
[1750114654887,0.86622681,2572.7,2572.2,3.88771476]
[1750114655092,10.04,2572.9,2572.4,3.88741081]
[1750114655093,1.6153,2572.8,2572.4,3.88741081]
[1750114655413,1.6153,2572.8,2572.3,3.88754537]
[1750114655620,3.88706275,2572.7,2572.1,3.8878542]
[1750114655825,7.2664365,2572.8,2572.2,3.88767607]
[1750114655999,7.2664365,2572.8,2571.9,13.848]
[1750114656000,12.48207448,2572.8,2571.9,13.848]
[1750114656195,12.48207448,2572.8,2572.3,3.88746853]
[1750114656397,1.6153,2572.8,2572.0,0.03887424]
[1750114656810,1.6153,2572.8,2572.0,3.92681934]
[1750114657013,0.04,2572.9,2572.7,3.88688325]
[1750114657326,0.04,2572.9,2572.7,3.88693411]
[1750114657823,0.04,2572.9,2572.8,3.88681592]
[1750114658231,0.04,2572.9,2572.6,13.827]
[1750114658396,0.04,2572.9,2572.7,3.88685986]
[1750114658597,0.04,2572.9,2572.8,3.88681592]
[1750114659020,1.43052724,2573.6,2572.9,1.5177]
[1750114659021,0.34014745,2573.5,2572.9,1.5177]
[1750114659232,0.04,2573.9,2573.2,7.77242344]
[1750114659542,0.04,2573.9,2573.5,3.88571086]
[1750114659743,0.04,2573.9,2573.6,3.88559738]
[1750114659901,0.04,2573.9,2573.3,13.817]
[1750114660098,0.04,2573.9,2573.6,3.88551594]
[1750114660319,0.04,2573.9,2573.7,3.88542679]
[1750114660512,0.04,2573.9,2573.7,3.88542261]
[1750114660725,0.04,2573.9,2573.6,3.88559204]
[1750114660932,0.04,2573.9,2573.7,3.88539337]
[1750114661339,0.04,2573.9,2573.8,3.88530577]
[1750114662507,0.04,2573.9,2573.4,4.031]
[1750114662704,0.04,2573.9,2573.8,5.45170577]
[1750114662908,0.04,2573.9,2573.8,13.64930577]
[1750114664562,0.04,2573.9,2573.8,17.67030577]
[1750114665425,0.04,2573.9,2573.8,29.29730577]
[1750114665610,0.04,2574.9,2574.8,3.88379679]
[1750114665808,0.04,2574.9,2574.8,12.13462973]
[1750114666114,0.04,2574.9,2574.8,8.212]
[1750114666337,0.04,2574.9,2574.8,12.09579679]
[1750114666512,0.04,2574.9,2574.8,8.212]
[1750114667459,0.04,2574.9,2574.8,12.09579679]
[1750114668147,0.04,2574.9,2574.8,21.82679679]
[1750114668736,0.04,2574.9,2574.8,8.212]
[1750114668924,4.46623543,2574.9,2574.8,8.212]
[1750114669109,0.04,2574.9,2574.8,8.212]
[1750114670310,3.92364596,2574.9,2574.8,8.212]
[1750114671272,0.04,2574.9,2574.4,3.88427089]
[1750114671419,0.04,2574.9,2574.3,9.712]
[1750114671420,3.92373783,2574.9,2574.3,13.5964703]
[1750114671749,0.04,2574.9,2574.8,3.88379679]
[1750114671951,0.04,2574.9,2574.8,13.58779679]
[1750114672816,0.04,2574.9,2574.8,3.88379679]
[1750114673129,0.04,2574.9,2574.8,17.50979679]
[1750114674139,0.04,2574.9,2574.2,3.88458654]
[1750114674340,0.04,2574.9,2574.5,3.88424936]
[1750114674538,0.04,2574.9,2574.6,3.8840985]
[1750114674739,0.04,2574.9,2574.7,3.88392243]
[1750114675116,0.04,2574.9,2574.5,13.57124936]
[1750114675117,0.04,2574.9,2574.5,9.687]
[1750114675314,0.04,2574.9,2574.4,3.931]
[1750114675513,0.04,2574.9,2574.5,13.56313476]
[1750114675716,0.04,2574.9,2574.6,3.88406695]
[1750114676438,0.04,2574.9,2574.5,9.679]
[1750114676644,0.04,2574.9,2574.4,3.8843877]
[1750114676953,6.26267506,2574.9,2574.5,9.679]
[1750114677155,2.379,2574.9,2574.5,9.679]
[1750114677457,7.04129487,2574.9,2574.3,3.88449586]
[1750114677680,2.339,2574.7,2574.3,3.88449586]
[1750114678052,2.339,2574.7,2574.2,13.593]
[1750114678438,2.339,2574.7,2574.2,7.81466413]
[1750114678678,2.339,2574.6,2574.3,3.88452599]
[1750114678980,2.339,2574.6,2574.2,13.593]
[1750114679186,2.339,2574.6,2574.3,3.88454121]
[1750114679477,2.339,2574.6,2574.3,3.88454455]
[1750114679683,2.339,2574.6,2574.4,3.88436042]
[1750114680197,2.339,2574.6,2574.5,3.88424936]
[1750114680398,0.04,2574.9,2574.5,9.648]
[1750114680596,0.04,2574.9,2574.8,3.88379679]
[1750114680758,0.04,2574.9,2574.8,13.53079679]
[1750114681137,0.04,2574.9,2574.8,3.88379679]
[1750114681354,0.04,2574.9,2574.8,13.56762887]
[1750114681697,0.04,2574.9,2574.8,13.52879679]
[1750114682037,0.04,2574.9,2574.8,15.17779679]
[1750114682289,0.2190339,2575.6,2575.5,3.88274121]
[1750114682497,0.2190339,2575.6,2575.5,13.51974121]
[1750114683153,0.2190339,2575.6,2575.5,15.13024121]
[1750114685141,0.2190339,2575.6,2575.5,13.51974121]
[1750114685346,0.2190339,2575.6,2575.4,3.8828013]
[1750114685582,0.2190339,2575.6,2575.5,3.88274121]
[1750114686078,0.2190339,2575.6,2575.2,8.208]
[1750114686242,0.2190339,2575.6,2574.4,3.929]
[1750114686442,6.91637006,2575.3,2574.5,3.88424936]
[1750114686686,10.79942201,2575.3,2574.4,3.929]
[1750114686854,10.79942201,2575.3,2574.5,9.607]
[1750114686855,3.88319353,2575.2,2574.5,9.607]
[1750114687052,3.88319353,2575.2,2574.1,3.88485295]
[1750114687053,1.633,2575.1,2574.1,3.88485295]
[1750114687241,1.633,2574.8,2574.0,8.207]
[1750114687440,1.633,2574.8,2574.3,3.88447038]
[1750114687683,1.633,2574.8,2574.0,8.207]
[1750114687872,1.633,2574.8,2574.1,9.602]
[1750114688180,1.633,2574.8,2574.5,3.88424728]
[1750114688579,1.633,2574.8,2574.0,8.207]
[1750114688781,5.51690749,2574.8,2574.0,12.09196624]
[1750114688973,2.57305269,2574.8,2574.3,3.88454154]
[1750114689143,6.45685279,2574.8,2574.2,3.88465785]
[1750114689578,2.57305269,2574.8,2574.2,3.88465785]
[1750114689881,3.8840985,2574.6,2574.0,8.207]
[1750114690065,0.55,2574.4,2574.1,3.88475871]
[1750114690267,2.57305269,2574.8,2574.1,3.88475871]
[1750114690268,1.633,2574.8,2574.1,0.03884941]
[1750114690469,1.6304,2575.3,2574.7,3.88394764]
[1750114690643,1.6304,2575.3,2575.0,3.88336477]
[1750114690850,0.2190339,2575.6,2575.0,9.583]
[1750114691299,0.2190339,2575.6,2575.5,3.88274121]
[1750114692562,0.2190339,2575.6,2575.3,3.88304275]
[1750114692772,0.2190339,2575.6,2575.3,3.88295184]
[1750114692991,0.2190339,2575.6,2575.2,3.88317936]
[1750114693191,0.2190339,2575.6,2575.1,9.571]
[1750114693401,0.2190339,2575.6,2575.3,3.88290811]
[1750114693555,0.2190339,2575.6,2575.4,3.88288142]
[1750114693760,0.2190339,2575.6,2575.3,3.8829966]
[1750114694101,0.2190339,2575.6,2575.3,3.88303381]
[1750114694457,1.6304,2575.5,2574.5,1.5617]
[1750114694689,1.6304,2575.5,2575.0,3.88339643]
[1750114694899,1.6304,2575.5,2574.7,3.88394764]
[1750114695067,3.9694,2575.5,2575.2,3.88305882]
[1750114695594,3.8831626,2575.3,2574.0,12.09195279]
[1750114695793,3.88319412,2575.2,2574.1,0.03883794]
[1750114695957,12.339,2575.2,2574.7,3.88384777]
[1750114696157,12.339,2575.2,2574.6,3.88395598]
[1750114696381,6.22250623,2575.0,2574.0,8.207]
[1750114696582,6.22250623,2575.0,2574.5,3.88424208]
[1750114696583,2.339,2575.0,2574.5,3.88424208]
[1750114696787,3.96124022,2574.9,2574.4,3.8843136]
[1750114697001,2.339,2574.9,2574.1,9.547]
[1750114697165,2.339,2574.9,2574.6,3.88408241]
[1750114697599,6.22265964,2574.9,2574.3,3.88445864]
[1750114697770,2.339,2574.7,2574.0,25.46396715]
[1750114698096,2.339,2574.7,2574.0,21.579]
[1750114698669,6.22295734,2574.7,2574.1,3.88482934]
[1750114698900,2.339,2574.7,2574.2,3.88461835]
[1750114699057,2.0634,2574.8,2574.5,3.88413261]
[1750114699058,3.8524,2574.8,2574.5,3.88413261]
[1750114699258,1.5134,2574.8,2574.5,3.88413261]
[1750114699900,1.5134,2574.8,2574.3,3.88446374]
[1750114700405,1.5134,2574.8,2574.5,3.88414841]
[1750114700586,1.5134,2574.8,2574.4,3.88433726]
[1750114700959,1.5134,2574.8,2574.1,3.88485295]
[1750114701315,3.88413309,2574.6,2574.0,21.559]
[1750114701797,3.88448183,2574.4,2574.0,12.04]
[1750114702000,0.55,2574.4,2574.0,12.04]
[1750114702161,2.85332674,2574.8,2574.0,12.04]
[1750114702162,1.5134,2574.8,2574.0,12.04]
[1750114702354,1.5134,2574.8,2574.4,3.88437494]
[1750114702871,1.5134,2574.8,2574.5,3.88414092]
[1750114703072,1.5134,2574.8,2574.4,3.88434434]
[1750114703317,1.5788,2575.2,2574.1,1.6134]
[1750114703511,11.15788,2575.1,2574.1,1.6134]
[1750114703827,15.0412444,2575.1,2574.5,3.88414604]
[1750114704024,11.15788,2575.1,2574.3,0.03884012]
[1750114704313,10.0,2575.1,2574.6,3.88395142]
[1750114704619,10.0,2575.1,2574.7,3.88394584]
[1750114704919,16.42137006,2575.5,2574.7,3.88394584]
[1750114704920,3.88242499,2575.8,2574.8,9.53783976]
[1750114705087,1.7978339,2575.6,2574.8,9.499]
[1750114705289,1.7978339,2575.6,2575.4,3.8828608]
[1750114705477,1.7978339,2575.6,2574.9,3.88364596]
[1750114705812,1.7978339,2575.6,2574.8,9.499]
[1750114705813,0.2190339,2575.6,2575.0,1.6134]
[1750114706017,3.8831802,2575.3,2574.5,3.834]
[1750114706219,0.55,2575.3,2574.9,3.88350577]
[1750114706717,11.5788,2575.5,2574.8,0.03883642]
[1750114707019,11.5788,2575.5,2575.2,3.88310364]
[1750114707189,1.5788,2575.5,2574.9,9.485]
[1750114707390,1.5788,2575.5,2575.0,0.03883149]
[1750114707610,1.5788,2575.5,2575.1,3.88334433]
[1750114707812,1.5788,2575.5,2575.2,3.88319353]
[1750114708324,1.5788,2575.5,2575.0,0.03883149]
[1750114708525,1.5788,2575.5,2575.2,3.88317319]
[1750114709025,1.5788,2575.5,2574.9,9.485]
[1750114709213,6.22193769,2575.4,2574.8,3.88371148]
[1750114709417,7.02391485,2575.4,2574.8,3.88371148]
[1750114709794,2.339,2575.2,2574.7,3.88383905]
[1750114710025,6.22224761,2575.2,2574.6,7.71797389]
[1750114710329,6.22224761,2575.2,2574.7,3.88386168]
[1750114710330,1.6201,2575.1,2574.7,3.88386168]
[1750114710495,1.6201,2575.1,2574.3,0.03883819]
[1750114710694,1.6201,2575.1,2574.7,3.88385258]
[1750114710890,1.6201,2575.1,2574.4,1.5286]
[1750114711096,10.0,2575.4,2574.9,3.88353338]
[1750114711349,6.22231602,2575.2,2574.6,3.88400796]
[1750114711532,6.2224572,2575.1,2574.0,9.7356]
[1750114711726,1.5375,2574.8,2574.3,3.88440026]
[1750114712090,7.76031414,2574.8,2574.3,3.88440026]
[1750114712513,3.8765,2574.8,2574.3,3.88440026]
[1750114712838,3.8765,2574.8,2574.3,3.88451167]
[1750114713419,3.8765,2574.8,2574.3,3.88441754]
[1750114713627,1.5375,2574.8,2574.3,3.92328717]
[1750114713807,1.5375,2574.8,2574.0,8.207]
[1750114713808,7.76042426,2574.8,2574.0,8.207]
[1750114714016,3.8765,2574.8,2574.2,3.88461502]
[1750114714223,8.92468995,2574.8,2574.2,3.88461502]
[1750114714392,8.92468995,2574.8,2574.3,3.88454419]
[1750114714593,8.9247121,2574.8,2574.3,3.88454419]
[1750114714840,8.9247121,2574.8,2574.2,3.88464918]
[1750114714994,8.9247121,2574.8,2574.2,3.88458055]
[1750114715217,5.04088589,2574.8,2574.3,3.88442233]
[1750114715638,5.04088589,2574.8,2574.0,11.945]
[1750114715840,5.04088589,2574.8,2574.3,3.8844099]
[1750114716026,5.04088589,2574.8,2574.4,3.88437608]
[1750114716241,5.04088589,2574.8,2574.0,11.945]
[1750114716568,3.8765,2574.8,2574.4,3.88432053]
[1750114716732,3.8765,2574.8,2574.3,3.88453668]
[1750114716733,3.8765,2574.8,2574.0,11.945]
[1750114716939,2.339,2574.6,2574.1,3.88481968]
[1750114717241,1.6041,2575.1,2574.3,3.88455114]
[1750114717427,0.2190339,2575.6,2574.5,3.88424936]
[1750114717630,0.2190339,2575.6,2575.4,3.88280911]
[1750114717936,0.2190339,2575.6,2575.2,3.88308451]
[1750114718252,10.2190339,2575.6,2575.1,7.62131598]
[1750114718552,0.2190339,2575.6,2575.2,3.88316959]
[1750114718755,0.2190339,2575.6,2575.5,3.88274121]
[1750114718957,0.2190339,2575.6,2575.3,3.88289921]
[1750114719258,0.2190339,2575.6,2575.4,3.88288362]
[1750114719619,0.2190339,2575.6,2575.5,3.88274121]
[1750114722133,0.2190339,2575.6,2575.5,17.01674121]
[1750114723583,0.2190339,2575.6,2575.5,17.00374121]
[1750114724157,0.2190339,2575.6,2575.5,3.88274121]
[1750114724356,0.2190339,2575.6,2575.5,17.00274121]
[1750114724965,0.2190339,2575.6,2575.5,16.99474121]
[1750114725727,0.2190339,2575.6,2575.5,16.98774121]
[1750114727156,0.2190339,2575.6,2575.5,16.98174121]
[1750114728232,0.2190339,2575.6,2575.5,3.88274121]
[1750114728432,0.2190339,2575.6,2575.5,16.97074121]
[1750114729467,0.2190339,2575.6,2575.5,18.59744121]
[1750114729667,0.2190339,2575.6,2575.5,5.50944121]
[1750114729971,0.2190339,2575.6,2575.5,18.58944121]
[1750114730183,0.2190339,2575.6,2575.5,3.88274121]
[1750114730387,0.2190339,2575.6,2575.5,17.00056134]
[1750114730598,0.2190339,2575.6,2575.5,3.88274121]
[1750114730762,0.2190339,2575.6,2572.7,0.17230118]
[1750114730763,1.5808,2575.0,2572.7,0.17230118]
[1750114730951,1.5808,2573.3,2573.2,4.21062591]
[1750114731155,1.5808,2573.3,2573.2,0.32441419]
[1750114731459,11.5808,2574.3,2573.4,3.88581542]
[1750114731790,3.8852404,2573.9,2573.2,0.32441419]
[1750114732002,3.88530701,2573.8,2573.2,0.32441419]
[1750114732148,3.88549949,2573.7,2573.2,0.32441419]
[1750114732355,10.0,2573.7,2573.2,0.32441419]
[1750114732856,1.5792,2573.6,2573.1,0.04]
[1750114733286,5.46483794,2573.6,2573.1,0.04]
[1750114733495,1.5792,2573.6,2573.1,0.04]
[1750114733995,5.4648472,2573.6,2573.1,0.04]
[1750114734352,7.53871882,2573.6,2573.1,0.04]
[1750114734570,3.88577066,2573.5,2573.1,0.04]
[1750114734775,3.88585327,2573.5,2573.1,0.04]
[1750114735106,7.5387733,2573.6,2573.1,0.04]
[1750114735391,7.53873349,2573.6,2573.1,0.04]
[1750114735758,5.63964037,2573.5,2573.1,0.04]
[1750114736094,3.88591864,2573.4,2573.1,0.04]
[1750114736408,3.88590969,2573.4,2573.1,0.04]
[1750114736595,11.75387335,2573.5,2573.1,0.04]
[1750114736762,5.6396677,2573.5,2573.1,0.04]
[1750114736970,0.38256418,2573.4,2573.1,0.04]
[1750114739203,0.38256418,2573.4,2573.1,3.92635188]
[1750114739607,0.38256418,2573.4,2573.1,0.04]
[1750114740188,6.91637006,2573.3,2573.1,0.04]
[1750114740707,13.88621172,2573.2,2573.1,0.04]
[1750114741001,12.50712137,2573.2,2573.1,0.04]
[1750114741163,16.39333309,2573.2,2573.1,0.04]
[1750114742002,0.38256418,2573.4,2573.1,0.04]
[1750114742207,11.75387335,2573.5,2573.2,3.88616612]
[1750114742504,1.5523,2573.9,2573.5,3.88575869]
[1750114742680,1.5523,2573.9,2573.4,3.88584862]
[1750114742874,11.5523,2573.9,2573.4,3.88584862]
[1750114743107,1.5523,2573.9,2573.7,3.88536649]
[1750114743408,1.5523,2573.9,2573.7,3.88540124]
[1750114743863,1.5523,2573.9,2573.6,3.88556069]
[1750114744062,1.5523,2573.9,2573.1,3.92636175]
[1750114744063,11.5523,2573.9,2573.1,3.92636175]
[1750114744262,2.339,2573.5,2573.3,3.88591509]
[1750114744563,2.339,2573.5,2573.1,0.04]
[1750114745105,2.339,2573.5,2573.4,3.88590969]
[1750114745288,2.339,2573.7,2573.5,3.88565622]
[1750114745809,16.22481099,2573.5,2573.1,0.04]
[1750114745968,2.339,2573.3,2573.1,0.04]
[1750114746371,3.9247,2573.2,2573.1,0.04]
[1750114746574,3.9247,2573.2,2573.1,3.92636275]
[1750114747116,3.9247,2573.2,2573.1,0.04]
[1750114747806,3.9247,2573.2,2573.1,3.92636275]
[1750114748173,3.9247,2573.2,2573.1,0.04]
[1750114748386,4.54858181,2573.2,2573.1,3.92636275]
[1750114749113,4.54858181,2573.2,2573.1,0.04]
[1750114750511,4.54858181,2573.2,2573.1,3.92636275]
[1750114750809,4.54858181,2573.2,2573.1,0.04]
[1750114751327,2.339,2573.5,2573.1,0.04]
[1750114751470,2.339,2573.5,2573.4,3.88590969]
[1750114752127,1.5525,2573.6,2573.2,3.8861207]
[1750114752432,2.339,2573.5,2573.1,0.04]
[1750114752632,2.339,2573.3,2573.1,0.04]
[1750114753336,2.339,2573.3,2573.1,3.92634719]
[1750114753492,2.339,2573.3,2573.1,0.04]
[1750114753908,2.339,2573.3,2573.1,3.92636226]
[1750114754693,2.339,2573.3,2573.1,0.04]
[1750114754929,3.30345201,2573.3,2573.1,0.04]
[1750114755793,3.30345201,2573.3,2573.1,3.92634271]
[1750114755994,1.5525,2573.6,2573.1,0.04]
[1750114756195,1.5481,2573.9,2573.6,3.88557017]
[1750114756504,1.5481,2573.9,2573.1,13.12932004]
[1750114756505,3.88553693,2573.7,2573.3,3.547]
[1750114756711,15.355067,2573.2,2571.5,1.6135]
[1750114756893,6.91637006,2572.3,2572.1,3.92786415]
[1750114757098,2.339,2572.3,2572.1,3.92782827]
[1750114757438,1.5231,2572.4,2572.3,3.88757143]
[1750114757595,6.91637006,2573.2,2572.2,3.88772257]
[1750114757791,11.69163701,2573.1,2572.1,9.238]
[1750114757997,15.57800846,2573.1,2572.5,3.88718745]
[1750114758207,2.339,2573.0,2572.6,3.88711348]
[1750114758643,2.339,2573.0,2572.4,7.43437082]
[1750114758644,2.339,2573.0,2572.5,3.88723912]
[1750114759016,2.339,2572.9,2572.4,3.547]
[1750114759317,2.339,2572.9,2572.8,3.88681592]
[1750114760228,2.339,2573.2,2572.7,3.8869519]
[1750114760428,2.339,2573.0,2572.6,7.43411285]
[1750114760617,2.339,2573.0,2572.7,3.88695027]
[1750114760793,2.339,2573.0,2572.7,3.88696699]
[1750114761216,2.339,2573.0,2572.8,3.88679303]
[1750114762101,2.339,2573.0,2572.9,3.88666485]
[1750114763026,2.339,2573.0,2571.5,3.88866476]
[1750114763236,2.339,2573.0,2572.7,3.88692197]
[1750114763550,2.69629,2572.9,2572.8,3.88681592]
[1750114763835,2.339,2572.9,2572.8,3.88681592]
[1750114764139,2.339,2572.9,2572.4,7.4353954]
[1750114764339,2.339,2572.9,2572.7,3.88695437]
[1750114764551,2.339,2572.9,2572.8,3.88681592]
[1750114765235,2.339,2573.1,2572.8,3.88681592]
[1750114765441,4.59391575,2573.1,2572.8,3.88669392]
[1750114765738,4.59391575,2573.1,2573.0,3.88651379]
[1750114766737,4.59391575,2573.1,2572.9,3.88662142]
[1750114766940,4.59391575,2573.1,2572.8,3.88674528]
[1750114767126,4.59391575,2573.1,2572.9,3.88664264]
[1750114767439,2.339,2573.1,2573.0,3.512]
[1750114767640,2.339,2573.1,2572.8,7.39874068]
[1750114768401,2.339,2573.2,2572.9,3.88661784]
[1750114768841,0.39582555,2573.9,2573.5,3.88567122]
[1750114769019,0.39582555,2573.9,2573.6,3.512]
[1750114769219,13.64809401,2574.1,2573.6,3.512]
[1750114769220,9.7631867,2574.1,2573.6,7.39760449]
[1750114769610,9.7631867,2574.1,2573.6,3.512]
[1750114769823,3.70907312,2574.2,2573.7,3.88545673]
[1750114770025,3.70907312,2574.2,2573.8,12.64]
[1750114770403,3.70907312,2574.2,2573.9,3.512]
[1750114771546,3.70907312,2574.2,2574.0,3.88496592]
[1750114771918,3.70907312,2574.2,2574.1,3.88485295]
[1750114772122,1.37007312,2574.2,2574.1,12.99985295]
[1750114772330,0.04,2574.9,2574.8,3.88379679]
[1750114772515,0.04,2574.9,2573.8,1.6119]
[1750114772715,0.04,2574.9,2574.6,3.88399777]
[1750114773553,0.04,2574.9,2574.4,3.512]
[1750114773754,2.339,2574.8,2574.4,3.512]
[1750114774045,16.22313832,2574.6,2574.0,7.39597677]
[1750114774254,2.339,2574.5,2574.0,7.39596932]
[1750114775434,6.22325423,2574.5,2574.0,7.39596932]
[1750114775637,2.339,2574.5,2574.0,7.39596932]
[1750114775838,0.04,2574.9,2574.1,1.575]